bitfinex/quotes_ETHUSD_20220212
["timestamp","ask_amount","ask_price","bid_price","bid_amount"]
[1644700733865,4.48712005,2956.3,2955.5,0.00549552]
[1644700734107,4.8518169,2956.3,2955.5,0.00549552]
[1644700734706,5.1518169,2956.3,2955.5,0.00549552]
[1644700734907,5.1518169,2956.3,2955.4,0.02681937]
[1644700735207,5.1518169,2956.3,2955.8,0.00989922]
[1644700735208,1.0,2956.2,2955.8,0.00989922]
[1644700735407,4.53096289,2956.1,2955.8,0.00989922]
[1644700736009,4.53096289,2956.1,2955.4,0.02681937]
[1644700736307,4.53096289,2956.1,2955.8,0.00989913]
[1644700737311,4.53096289,2956.1,2955.1,0.00289602]
[1644700737514,4.53096289,2956.1,2955.8,0.00989913]
[1644700738558,4.36186289,2956.1,2955.1,0.00289602]
[1644700738758,4.36186289,2956.1,2955.8,0.00989913]
[1644700739460,5.22710219,2956.1,2955.8,0.00989913]
[1644700739657,5.22710219,2956.1,2955.1,0.00289602]
[1644700739858,5.22710219,2956.1,2955.8,0.00989913]
[1644700740860,5.22710219,2956.1,2955.1,0.00289602]
[1644700741060,5.22710219,2956.1,2955.8,0.00989913]
[1644700741614,5.52710219,2956.1,2955.8,0.00989913]
[1644700742020,6.43490219,2956.1,2955.3,0.02686171]
[1644700742213,6.43490219,2956.1,2955.1,0.00289602]
[1644700742214,4.25,2955.5,2955.1,0.00289602]
[1644700742413,4.38179109,2955.4,2955.1,0.00289602]
[1644700742611,4.38179109,2955.4,2954.5,0.00289602]
[1644700742813,1.0,2955.3,2954.5,0.00289602]
[1644700743015,4.79158,2955.2,2954.5,0.00289602]
[1644700743213,0.71327143,2954.6,2954.5,0.00289602]
[1644700743415,0.71327143,2954.6,2954.4,0.95]
[1644700743613,3.69663272,2954.9,2954.4,0.95]
[1644700743814,3.81836023,2955.0,2954.4,0.95]
[1644700744014,0.485,2955.0,2954.5,0.00289602]
[1644700744216,1.2126,2955.4,2954.5,0.00289602]
[1644700744619,1.2126,2955.4,2954.4,0.78789602]
[1644700745018,1.2126,2955.4,2954.4,0.30289602]
[1644700745265,0.485,2955.3,2954.4,0.30289602]
[1644700745464,0.6541,2955.3,2954.4,0.30289602]
[1644700745863,0.6541,2955.3,2954.7,0.00990036]
[1644700746869,0.6541,2955.3,2954.4,0.30289602]
[1644700747069,3.76033783,2955.3,2954.9,0.00990008]
[1644700747273,3.81638164,2955.3,2954.9,0.00990008]
[1644700747471,0.485,2955.3,2954.9,0.00990008]
[1644700748071,0.02969739,2955.6,2954.4,1.30582993]
[1644700748272,0.02969739,2955.6,2954.5,3.55019556]
[1644700748473,0.02969739,2955.6,2955.0,0.00989989]
[1644700749207,0.02969739,2955.6,2954.7,0.3]
[1644700749607,0.02969739,2955.6,2955.2,0.00989952]
[1644700750409,0.02969739,2955.6,2954.7,3.30061848]
[1644700750610,0.02969739,2955.6,2954.7,3.62318358]
[1644700750808,0.02969739,2955.6,2955.3,0.00956525]
[1644700751617,0.02969739,2955.6,2954.7,3.62318358]
[1644700752114,0.02969739,2955.6,2955.3,0.00956516]
[1644700752517,0.81787431,2955.6,2955.3,0.00956516]
[1644700752762,5.3,2955.5,2955.3,0.00956516]
[1644700752964,0.6541,2955.4,2954.4,0.30289602]
[1644700753164,1.6541,2955.4,2955.3,0.00956516]
[1644700753365,1.9541,2955.4,2955.3,0.00956516]
[1644700753964,0.9541,2955.4,2955.3,0.00956516]
[1644700754166,0.9541,2955.4,2954.4,0.30289602]
[1644700754367,0.72407964,2955.0,2954.8,0.0371644]
[1644700754971,1.20907964,2955.0,2954.8,0.0371644]
[1644700755366,1.20907964,2955.0,2954.4,0.30289602]
[1644700755567,1.80907964,2955.0,2954.4,0.30289602]
[1644700756166,2.80907964,2955.0,2954.4,0.30289602]
[1644700756366,0.64250953,2954.5,2954.4,0.30289602]
[1644700756620,0.1691,2954.9,2954.4,0.30289602]
[1644700756824,1.485,2955.3,2954.4,0.30289602]
[1644700757219,2.085,2955.3,2954.4,0.30289602]
[1644700757625,1.785,2955.3,2954.4,0.30289602]
[1644700757920,1.2006,2955.4,2954.7,0.00989441]
[1644700757921,0.1691,2955.2,2954.7,0.00989441]
[1644700758120,0.1691,2955.3,2954.7,0.00989441]
[1644700758524,0.1691,2955.3,2954.7,0.0041705]
[1644700758820,0.1691,2955.3,2954.4,0.30289602]
[1644700760658,0.1691,2955.3,2954.5,0.0028892]
[1644700760863,1.90428786,2955.4,2954.5,0.0028892]
[1644700762063,0.1691,2955.3,2954.5,0.0028892]
[1644700762463,0.66147913,2954.9,2954.5,0.0028892]
[1644700762664,0.66147913,2954.9,2954.6,0.00989498]
[1644700763264,0.1691,2955.3,2954.6,0.00989498]
[1644700763666,0.1691,2955.3,2954.5,0.0028892]
[1644700763865,0.1691,2955.3,2954.6,0.00989506]
[1644700764318,0.70764224,2954.8,2954.6,0.00989506]
[1644700764917,0.70764224,2954.8,2954.5,0.0028892]
[1644700765122,0.70764224,2954.8,2954.6,0.00989468]
[1644700765519,0.1691,2955.3,2954.6,0.00989468]
[1644700765716,1.2006,2955.4,2954.6,0.00989468]
[1644700765919,0.1691,2955.3,2954.6,0.00989468]
[1644700766119,0.1691,2955.3,2954.5,0.0028892]
[1644700766318,0.1691,2955.3,2954.6,0.00989513]
[1644700766718,0.7306304,2954.9,2954.6,0.00989513]
[1644700767218,0.7306304,2954.9,2954.5,0.0028892]
[1644700767619,0.7306304,2954.9,2954.6,0.00989476]
[1644700768066,0.1691,2955.3,2954.6,0.00989476]
[1644700768262,1.2006,2955.4,2954.6,0.00989476]
[1644700768462,1.2006,2955.4,2954.5,3.88962123]
[1644700768663,1.2006,2955.4,2954.4,1.30289602]
[1644700768866,1.2006,2955.4,2954.6,0.00989506]
[1644700769066,2.00167511,2955.4,2954.6,0.00989506]
[1644700769766,2.00167511,2955.4,2954.4,0.60289602]
[1644700769967,2.00167511,2955.4,2954.5,0.1692]
[1644700770168,0.02969739,2955.6,2954.5,8.92965511]
[1644700770371,0.02969739,2955.6,2954.6,6.49721285]
[1644700770571,0.02969739,2955.6,2954.8,1.69154]
[1644700770770,0.02969739,2955.6,2954.9,3.6691]
[1644700770967,0.02969739,2955.6,2954.9,4.1541]
[1644700771167,0.1691,2956.7,2955.0,6.35]
[1644700771368,1.43920893,2956.6,2955.6,0.84561]
[1644700771613,1.43920893,2956.6,2955.7,0.1691]
[1644700771817,1.43920893,2956.6,2955.6,0.3]
[1644700772012,1.43920893,2956.6,2955.7,0.1691]
[1644700772212,1.43920893,2956.5,2955.8,0.71820266]
[1644700772414,1.43920893,2956.5,2955.7,0.1691]
[1644700772613,1.43920893,2957.0,2955.7,3.40840356]
[1644700772816,1.05807806,2957.1,2955.8,1.0]
[1644700773012,1.05807806,2957.1,2955.9,3.3410788]
[1644700773013,1.43918126,2956.9,2955.9,3.3410788]
[1644700773217,1.43918126,2956.8,2955.9,3.6410788]
[1644700773416,0.1691,2957.1,2956.0,4.20035771]
[1644700773614,1.43907694,2957.0,2956.0,4.95525771]
[1644700773816,16.5851,2957.7,2956.0,5.25525771]
[1644700774014,1.43899939,2957.6,2956.0,3.95525771]
[1644700774214,0.88389316,2957.1,2956.0,3.95525771]
[1644700774515,1.43899939,2957.0,2956.0,4.25525771]
[1644700774714,17.22240389,2957.7,2956.1,1.0]
[1644700774914,1.43902376,2957.6,2956.2,3.375]
[1644700775116,1.43902376,2957.6,2956.2,3.675]
[1644700775374,1.43902376,2957.6,2956.3,1.0]
[1644700775575,0.74397261,2957.5,2956.4,3.32945989]
[1644700775878,1.43902376,2957.4,2956.4,0.169]
[1644700776176,0.00989204,2957.1,2956.4,0.169]
[1644700776876,10.6594,2957.7,2956.4,1.169]
[1644700777075,1.43900312,2957.6,2956.4,1.169]
[1644700777275,1.43900312,2957.6,2956.4,0.169]
[1644700777276,0.00989241,2956.9,2956.4,0.169]
[1644700777476,0.00989241,2956.9,2956.4,0.469]
[1644700777678,0.00989241,2956.9,2956.4,0.169]
[1644700777876,0.00989241,2956.9,2956.4,0.469]
[1644700778077,0.67577915,2957.5,2956.4,1.769]
[1644700778276,6.9062,2957.7,2956.4,1.769]
[1644700778479,0.0098926,2956.8,2956.4,0.3]
[1644700778676,0.0098926,2956.8,2956.3,0.84543]
[1644700778878,0.0098926,2956.8,2956.4,0.4691]
[1644700779307,0.1691,2957.6,2956.4,0.4691]
[1644700779609,0.00989269,2956.7,2956.4,0.4691]
[1644700780410,0.00989269,2956.7,2956.4,1.4691]
[1644700780610,0.1691,2957.4,2956.4,1.4691]
[1644700780809,0.00989278,2956.7,2956.5,3.19054542]
[1644700781012,0.00989278,2956.7,2956.4,1.4691]
[1644700781817,0.1691,2957.4,2956.4,1.4691]
[1644700782019,0.00989278,2956.7,2956.4,4.72138438]
[1644700782218,0.00989278,2956.7,2956.4,0.4691]
[1644700782418,0.00989278,2956.7,2956.4,0.1691]
[1644700782858,0.1691,2957.4,2956.4,1.1691]
[1644700783058,0.17401529,2957.5,2956.4,1.1691]
[1644700783259,0.00989278,2956.7,2956.4,0.1691]
[1644700783458,0.00989278,2956.7,2956.4,1.1691]
[1644700783663,0.00989278,2956.7,2956.4,0.1691]
[1644700784061,0.17401529,2957.5,2956.4,0.1691]
[1644700784260,0.17401529,2957.5,2956.4,1.1691]
[1644700784559,0.00989278,2956.7,2956.4,1.1691]
[1644700785162,0.00989278,2956.7,2956.0,1.485]
[1644700785359,0.75180899,2957.0,2956.0,0.3]
[1644700785562,0.75180899,2957.0,2955.9,0.30284949]
[1644700785761,0.00989278,2956.7,2955.9,0.00284949]
[1644700786522,0.829,2956.9,2955.9,0.00284949]
[1644700786719,0.9981,2956.9,2955.9,0.00284949]
[1644700786916,0.00989324,2956.4,2955.7,0.00284949]
[1644700787715,0.1691,2956.9,2955.7,0.00284949]
[1644700787918,0.75180899,2957.0,2955.8,0.1691]
[1644700788117,0.00989371,2956.2,2955.8,0.17194949]
[1644700788921,0.84734968,2956.5,2955.8,0.17194949]
[1644700789320,0.0098938,2956.1,2955.8,0.17194949]
[1644700789518,0.0098938,2956.1,2955.8,0.1691]
[1644700790120,2.1594,2957.2,2955.8,0.1691]
[1644700790121,1.1594,2957.2,2955.8,0.1691]
[1644700790363,1.1594,2957.2,2955.6,4.77554275]
[1644700790364,0.00989389,2956.1,2955.7,0.17194949]
[1644700790561,0.00989389,2956.1,2955.7,0.1691]
[1644700791366,0.85366818,2956.7,2955.7,0.1691]
[1644700791574,0.00989399,2956.0,2955.7,0.17194949]
[1644700791767,0.00989399,2956.0,2955.7,0.1691]
[1644700792369,0.00989399,2956.0,2955.8,0.1691]
[1644700792568,0.85366818,2956.7,2955.8,0.1691]
[1644700792768,0.00989408,2956.0,2955.8,0.1691]
[1644700792968,0.00989408,2956.0,2955.7,0.17194989]
[1644700793168,0.00989408,2956.0,2955.7,0.1691]
[1644700793769,0.85366818,2956.7,2955.7,0.1691]
[1644700794016,0.00989408,2956.0,2955.7,0.1691]
[1644700795009,0.85366818,2956.7,2955.7,0.1691]
[1644700795215,0.00989408,2956.0,2955.3,0.17194989]
[1644700795713,0.00989408,2956.0,2955.3,1.17194989]
[1644700795914,0.00989408,2956.0,2955.3,1.47194989]
[1644700796114,0.85366818,2956.7,2955.3,1.47194989]
[1644700796315,0.00989445,2955.8,2955.3,1.47194989]
[1644700796721,0.00989445,2955.8,2955.5,0.84565]
[1644700797119,0.00989445,2955.8,2955.6,0.3]
[1644700797320,4.48898873,2957.1,2955.6,0.3]
[1644700797521,0.00989445,2955.8,2955.6,0.30284989]
[1644700797758,0.00989445,2955.8,2955.7,0.89208981]
[1644700798159,0.00989445,2955.8,2955.7,1.19208981]
[1644700798560,4.17645294,2957.1,2955.7,1.19208981]
[1644700798759,0.00989426,2955.9,2955.7,1.19208981]
[1644700799362,0.00989426,2955.9,2955.7,0.3]
[1644700799560,0.00989426,2955.9,2955.6,0.6]
[1644700799760,4.17645294,2957.1,2955.4,0.60284989]
[1644700799959,0.00989417,2955.9,2955.4,0.30284989]
[1644700800160,0.00989417,2955.9,2955.4,0.00284989]
[1644700800360,0.00989417,2955.9,2955.8,0.63373792]
[1644700800760,0.00989417,2955.9,2955.8,0.93373792]
[1644700800960,4.17645294,2957.1,2955.8,0.93373792]
[1644700801161,4.17645294,2957.1,2955.8,1.41873792]
[1644700801162,0.00989408,2956.0,2955.8,1.41873792]
[1644700802219,0.1691,2957.1,2955.8,1.41873792]
[1644700802220,0.1691,2957.1,2955.8,1.71873792]
[1644700802420,0.00989399,2956.0,2955.8,1.71873792]
[1644700802623,0.00989399,2956.0,2955.9,5.84554]
[1644700802819,1.79720389,2958.2,2956.0,6.65]
[1644700802820,3.69107895,2957.6,2956.0,6.65]
[1644700803021,3.4790293,2958.1,2956.1,4.65250936]
[1644700803323,3.4790293,2958.1,2956.4,19.76]
[1644700803324,1.43886271,2958.0,2956.4,19.76]
[1644700803520,0.1691,2958.1,2957.2,0.89524954]
[1644700803721,0.1691,2958.1,2957.4,1.1451]
[1644700803921,0.485,2959.1,2957.4,1.1451]
[1644700803922,0.169,2958.5,2957.4,1.1451]
[1644700804120,3.3467484,2959.0,2957.4,1.1451]
[1644700804121,1.4386245,2958.4,2957.4,0.3]
[1644700804320,1.4386245,2958.3,2957.4,0.3]
[1644700804524,3.65711325,2958.8,2957.3,1.085]
[1644700804721,1.60764703,2958.7,2957.3,2.085]
[1644700804923,0.65741508,2958.4,2957.3,2.085]
[1644700805121,4.67467138,2958.3,2957.3,0.6]
[1644700805362,1.43864703,2958.3,2957.3,0.3]
[1644700805562,0.65741508,2958.4,2957.3,0.3]
[1644700805563,1.43867485,2958.2,2957.3,0.3]
[1644700805865,0.65741508,2958.4,2957.1,0.3]
[1644700805866,3.27086007,2958.1,2957.1,0.3]
[1644700806065,0.73035461,2957.9,2957.1,0.3]
[1644700806465,0.00989046,2957.9,2957.1,0.3]
[1644700806869,0.00989046,2957.9,2956.9,1.3]
[1644700807072,0.169,2958.0,2956.9,1.0]
[1644700807269,0.00989102,2957.6,2956.9,1.0]
[1644700807869,0.00989102,2957.6,2957.1,0.83904873]
[1644700808273,0.169,2958.1,2957.1,1.43904873]
[1644700808472,0.0098913,2957.5,2957.1,1.43904873]
[1644700809322,0.169,2958.1,2957.1,1.43904873]
[1644700809323,0.169,2958.1,2957.1,0.6]
[1644700809526,0.169,2958.1,2956.8,3.6454]
[1644700809527,3.49309648,2958.1,2956.8,3.6454]
[1644700809825,0.00989139,2957.4,2956.6,3.8745]
[1644700810220,0.00989139,2957.4,2956.4,1.2477]
[1644700810221,0.90408128,2957.4,2956.4,1.2477]
[1644700810420,3.29607811,2957.3,2956.2,3.133]
[1644700810621,3.29607811,2957.3,2956.2,3.302]
[1644700810821,0.00989213,2957.0,2956.2,3.133]
[1644700811528,0.00989213,2957.0,2956.3,22.10476]
[1644700811725,0.1691,2957.3,2956.3,22.10476]
[1644700811726,0.1691,2957.3,2956.3,2.51685129]
[1644700812127,0.00989269,2956.7,2956.5,5.0]
[1644700812331,0.1691,2957.3,2956.6,7.8191]
[1644700812527,0.1691,2957.3,2957.0,0.84171609]
[1644700812759,0.0001,2957.3,2957.1,0.654]
[1644700812960,0.0001,2957.3,2957.1,0.485]
[1644700813360,0.0001,2957.3,2957.1,0.785]
[1644700813560,0.0001,2957.3,2957.2,0.169]
[1644700813761,0.0001,2957.3,2957.2,0.469]
[1644700815963,0.0001,2957.3,2957.2,0.954]
[1644700816165,0.0001,2957.3,2957.2,0.785]
[1644700820969,0.0001,2957.3,2957.2,0.485]
[1644700822373,0.0001,2957.3,2957.2,0.785]
[1644700824524,0.0001,2957.3,2957.2,1.63017]
[1644700825526,0.0001,2957.3,2957.2,2.43070916]
[1644700825728,3.5,2958.1,2957.2,2.43070916]
[1644700825729,3.5,2958.1,2957.3,6.95]
[1644700825926,2.18359878,2960.0,2957.5,1.68995]
[1644700825927,0.169,2958.6,2957.5,1.68995]
[1644700826127,1.43846694,2958.5,2957.6,0.485]
[1644700826329,3.669,2958.7,2957.6,0.485]
[1644700826527,0.169,2959.1,2957.6,25.414]
[1644700826727,3.2180812,2959.3,2957.6,25.414]
[1644700826728,1.43829134,2959.0,2957.6,0.954]
[1644700827028,4.63394111,2959.3,2958.3,0.84485]
[1644700827029,1.43829134,2958.9,2958.3,0.84485]
[1644700827231,4.61016197,2959.3,2958.3,0.84485]
[1644700827232,1.3197,2959.3,2958.3,0.84485]
[1644700827429,1.3197,2959.3,2958.1,1.98969]
[1644700827430,4.7010759,2959.2,2958.1,1.98969]
[1644700827629,1.60708316,2959.1,2958.0,0.485]
[1644700827864,4.94982357,2959.0,2958.0,0.485]
[1644700828061,1.60728316,2958.9,2958.0,0.485]
[1644700828260,0.62829306,2958.5,2957.7,3.7215]
[1644700828460,0.62829306,2958.5,2957.6,0.3]
[1644700828761,0.169,2958.7,2957.4,1.6]
[1644700828762,1.3076,2958.7,2957.4,1.6]
[1644700828960,1.43851172,2958.6,2957.5,1.0]
[1644700829160,0.169,2958.5,2957.4,0.3]
[1644700829361,0.169,2958.5,2957.3,2.085]
[1644700829563,0.169,2958.6,2957.3,2.085]
[1644700830162,0.00989027,2958.0,2957.3,2.085]
[1644700830962,0.169,2958.6,2957.3,2.085]
[1644700831363,0.00989074,2957.8,2957.3,2.085]
[1644700832316,3.42004367,2958.6,2957.3,2.085]
[1644700832517,0.00989092,2957.7,2957.4,0.169]
[1644700833517,3.3394259,2958.6,2957.4,0.169]
[1644700833718,0.00989092,2957.7,2957.4,0.169]
[1644700834617,1.91145254,2958.7,2957.4,0.169]
[1644700834817,0.00989092,2957.7,2957.4,0.169]
[1644700835864,3.30488899,2958.6,2957.4,0.169]
[1644700836064,0.00989092,2957.7,2957.4,0.169]
[1644700836466,0.00989092,2957.7,2957.4,1.85908]
[1644700836865,0.00989092,2957.7,2957.4,1.80908]
[1644700837064,1.1386,2958.7,2957.4,1.80908]
[1644700837266,0.00989092,2957.7,2957.4,1.80908]
[1644700837467,0.00989092,2957.7,2957.5,0.485]
[1644700837667,0.00989092,2957.7,2957.6,0.169]
[1644700837867,0.00989092,2957.7,2957.6,0.654]
[1644700838069,0.00989092,2957.7,2957.6,1.499]
[1644700838270,1.1386,2958.7,2957.6,1.499]
[1644700838467,0.00989074,2957.8,2957.6,2.499]
[1644700838668,0.00989074,2957.8,2957.6,2.799]
[1644700838868,0.00989074,2957.8,2957.6,1.799]
[1644700839111,0.00989074,2957.8,2957.7,1.0]
[1644700839313,0.00989074,2957.8,2957.7,0.3]
[1644700839514,1.1386,2958.7,2957.7,0.99599323]
[1644700839711,0.00989055,2957.9,2957.7,0.69599323]
[1644700839912,0.00989055,2957.9,2957.7,1.69599323]
[1644700840113,0.00989055,2957.9,2957.7,0.69599323]
[1644700840412,0.00989055,2957.9,2957.7,1.69599323]
[1644700840612,1.1386,2958.7,2957.7,1.54090323]
[1644700840816,0.169,2959.1,2958.0,0.84494]
[1644700841017,0.169,2959.2,2958.1,0.65813207]
[1644700841217,4.2928,2959.3,2958.2,0.485]
[1644700841618,4.2928,2959.3,2958.4,0.75560273]
[1644700841817,4.2928,2959.3,2958.5,0.485]
[1644700842016,1.1538,2959.3,2958.5,0.485]
[1644700842217,0.00988869,2958.9,2958.5,0.485]
[1644700842418,0.00988869,2958.9,2958.5,0.785]
[1644700843062,1.1538,2959.3,2958.5,0.785]
[1644700843262,0.00988879,2958.8,2958.5,0.785]
[1644700844273,3.5675813,2959.1,2958.2,0.1688]
[1644700844469,0.00988888,2958.8,2958.2,0.1688]
[1644700845071,0.00988888,2958.8,2958.2,0.16500453]
[1644700845268,0.00988888,2958.8,2958.2,0.46500453]
[1644700845468,1.43825706,2958.7,2958.2,0.46500453]
[1644700845668,0.00988916,2958.6,2958.2,0.16500453]
[1644700846076,0.00988916,2958.6,2957.8,2.68983]
[1644700846273,0.00988916,2958.6,2957.7,3.8882]
[1644700846517,0.00988916,2958.6,2957.7,3.6382]
[1644700846716,1.0,2959.1,2957.7,3.6382]
[1644700846921,1.0,2959.1,2957.1,2.34801207]
[1644700846922,1.0,2959.1,2957.5,0.169]
[1644700846923,0.00988981,2958.3,2957.5,0.169]
[1644700847122,0.00988981,2958.3,2957.2,0.169]
[1644700847123,1.43835374,2958.2,2957.2,0.169]
[1644700847318,0.7700204,2958.0,2957.1,0.169]
[1644700847519,4.93835374,2958.2,2957.0,0.169]
[1644700847520,4.6702,2958.2,2957.0,0.169]
[1644700847721,1.43858515,2958.1,2957.0,0.169]
[1644700848119,0.00989083,2957.7,2956.9,0.17889366]
[1644700849119,4.18078586,2958.0,2956.9,0.169]
[1644700849320,4.18078586,2958.0,2956.9,0.17889321]
[1644700849321,0.00989105,2957.5,2956.9,0.17889321]
[1644700850364,4.18078586,2958.0,2956.9,0.169]
[1644700850563,0.0098909,2957.5,2956.9,0.17889307]
[1644700850965,0.69000879,2957.5,2956.9,0.17889307]
[1644700851170,3.67367561,2957.4,2956.9,0.17889307]
[1644700851367,3.67367561,2957.4,2956.9,0.17321507]
[1644700851567,3.67367561,2957.4,2956.9,0.163322]
[1644700851767,3.67367561,2957.4,2956.9,0.17321499]
[1644700852567,0.00989083,2957.5,2956.9,0.00989299]
[1644700852769,3.74394961,2957.7,2956.5,0.25]
[1644700852969,0.00959411,2957.5,2956.9,0.0095962]
[1644700853169,0.17859411,2957.5,2956.9,0.0095962]
[1644700853368,3.25656863,2957.5,2956.9,0.0095962]
[1644700853569,0.66041687,2957.4,2956.9,0.0095962]
[1644700853770,0.00959411,2957.5,2956.9,0.0095962]
[1644700854024,3.50475866,2957.7,2956.4,1.44541]
[1644700854211,0.00959411,2957.5,2956.9,0.0095962]
[1644700855012,0.77233844,2957.5,2956.9,0.0095962]
[1644700855212,0.76274433,2957.5,2956.4,0.6]
[1644700855412,3.29935394,2957.4,2956.9,0.00959627]
[1644700855611,0.77233851,2957.5,2956.9,0.00959627]
[1644700855812,3.53018335,2957.4,2956.9,0.00959627]
[1644700856013,4.27108335,2957.4,2956.9,0.00959627]
[1644700856315,1.43891841,2957.3,2956.0,0.169]
[1644700856516,1.43891841,2957.3,2956.9,0.00928055]
[1644700856517,3.77151273,2957.2,2956.9,0.00928055]
[1644700856717,4.07151273,2957.2,2956.9,0.00928055]
[1644700856918,4.07151273,2957.2,2956.5,0.03712709]
[1644700856919,0.0185611,2956.8,2956.5,0.03712709]
[1644700857517,0.78308941,2956.7,2955.9,0.25]
[1644700857762,3.42825979,2956.6,2955.8,7.48]
[1644700858167,3.24380877,2956.6,2955.8,7.48]
[1644700858365,0.0185611,2956.8,2955.8,7.48]
[1644700858665,0.0185611,2956.8,2955.9,0.1691]
[1644700860167,0.0185611,2956.8,2956.2,0.00989294]
[1644700861266,0.0185611,2956.8,2955.9,0.1691]
[1644700861529,0.1691,2956.7,2956.4,0.00989266]
[1644700861924,3.8801773,2956.7,2956.4,0.00989266]
[1644700862323,5.0960773,2956.7,2955.2,7.6491]
[1644700862525,5.0960773,2956.7,2956.4,0.00989257]
[1644700862724,0.75779393,2956.6,2956.4,0.00989257]
[1644700862923,3.60064174,2956.5,2956.4,0.00989257]
[1644700863323,4.9691,2956.5,2956.4,9.257e-05]
[1644700863527,6.7844,2956.5,2955.3,0.0028489]
[1644700863724,1.0,2956.4,2955.3,0.0028489]
[1644700863925,0.6541,2956.3,2955.3,0.0028489]
[1644700864122,4.1541,2956.3,2955.3,0.0028489]
[1644700864325,1.0,2956.2,2955.3,0.0028489]
[1644700864524,9.5153,2956.1,2955.3,0.0028489]
[1644700864723,0.3,2956.0,2955.3,0.0028489]
[1644700864922,0.1691,2955.9,2955.3,0.0028489]
[1644700865123,1.0623,2955.9,2955.6,0.00988742]
[1644700865371,0.70582683,2955.7,2955.6,0.00988742]
[1644700865570,0.87492683,2955.7,2955.6,0.00988742]
[1644700865971,0.1691,2955.7,2955.3,0.0028489]
[1644700866175,0.3392,2956.0,2955.5,0.00988761]
[1644700866176,0.1691,2956.0,2955.5,0.00988761]
[1644700866374,3.2233,2956.1,2955.5,0.00988761]
[1644700866776,4.53184161,2956.0,2955.5,0.00988761]
[1644700866979,0.68117317,2955.8,2955.5,0.00988761]
[1644700867175,0.68117317,2955.8,2955.2,0.0028489]
[1644700867376,3.24435073,2955.7,2955.6,0.00988742]
[1644700867577,3.22921286,2955.7,2955.6,0.00988742]
[1644700867777,0.85027317,2955.8,2955.6,0.00988742]
[1644700867975,3.35508264,2955.7,2955.6,0.00988742]
[1644700868377,3.35508264,2955.7,2954.4,0.0028489]
[1644700868779,1.0,2955.6,2954.4,0.0028489]
[1644700869026,3.34956938,2955.5,2954.4,0.0028489]
[1644700869214,3.51866938,2955.5,2954.4,0.0028489]
[1644700869417,0.76459864,2954.9,2954.4,0.0028489]
[1644700869618,1.63189864,2954.9,2954.0,0.0028489]
[1644700869815,1.63189864,2954.9,2954.8,0.00983913]
[1644700870822,1.63189864,2954.9,2954.0,0.0028489]
[1644700871018,3.3044,2955.2,2954.7,0.00983932]
[1644700871223,1.5063,2955.7,2954.7,1.44895669]
[1644700871224,1.2218,2955.7,2954.7,1.44895669]
[1644700871424,1.16099339,2956.8,2954.8,3.9878489]
[1644700871425,0.1691,2956.4,2954.8,3.9878489]
[1644700871624,1.1765,2956.6,2954.8,3.9878489]
[1644700871822,1.1765,2956.6,2954.8,4.5878489]
[1644700872024,0.8756972,2955.5,2954.9,3.5]
[1644700872230,0.8756972,2955.5,2955.0,0.0028489]
[1644700872422,0.8756972,2955.5,2955.1,0.0393569]
[1644700873277,0.8756972,2955.5,2954.8,0.0028489]
[1644700873478,0.1691,2956.5,2955.2,0.00985512]
[1644700873881,5.0,2956.0,2955.2,0.00985512]
[1644700874084,1.4153,2955.9,2955.2,0.00985512]
[1644700874279,2.7153,2955.9,2955.2,0.00985512]
[1644700874479,2.7153,2955.9,2954.4,0.0028489]
[1644700874682,3.1216,2955.8,2955.4,0.00953]
[1644700874887,0.1691,2955.7,2955.4,0.00953]
[1644700875085,3.1216,2955.8,2955.4,0.00953]
[1644700875686,3.1216,2955.8,2954.8,3.54804757]
[1644700875983,0.86591386,2955.7,2954.8,0.3028489]
[1644700876183,0.86591386,2955.7,2954.8,3.57690731]
[1644700876384,0.86591386,2955.7,2954.8,3.57021219]
[1644700876627,1.2462,2955.9,2954.8,3.57021219]
[1644700876827,1.2462,2955.9,2954.9,1.485]
[1644700877025,1.2462,2955.9,2955.0,0.0028489]
[1644700877224,1.2462,2955.9,2955.0,4.41989488]
[1644700877428,1.2462,2955.9,2955.1,1.0]
[1644700877626,1.2462,2955.9,2955.2,3.25566037]
[1644700877826,0.1691,2956.2,2955.2,0.3]
[1644700878125,0.1691,2956.2,2955.0,1.3336589]
[1644700878126,3.35699605,2956.2,2955.0,1.3336589]
[1644700878327,0.1691,2956.1,2955.4,0.00984987]
[1644700879226,0.1691,2956.1,2955.1,0.1691]
[1644700879627,0.1691,2956.1,2955.6,0.0098495]
[1644700879831,3.48570353,2956.1,2955.6,0.0098495]
[1644700880030,0.1691,2956.1,2955.6,0.0098495]
[1644700880261,3.62273451,2956.1,2955.6,0.0098495]
[1644700880465,3.62273451,2956.1,2955.0,0.4878489]
[1644700880669,3.62273451,2956.1,2955.7,0.00984932]
[1644700880866,3.42875783,2956.1,2955.7,0.00984932]
[1644700881069,0.84913876,2955.8,2955.7,0.00984932]
[1644700881570,3.42875783,2956.1,2955.0,0.0028489]
[1644700881571,0.1691,2956.1,2955.1,0.1691]
[1644700881973,0.1691,2956.1,2955.0,0.4878489]
[1644700882174,0.1691,2956.1,2955.6,0.0098495]
[1644700882577,0.85025291,2956.0,2955.6,0.0098495]
[1644700882775,0.85025291,2956.0,2955.0,0.4878489]
[1644700882776,3.6745251,2955.9,2955.0,0.0028489]
[1644700883075,3.6745251,2955.9,2954.5,0.0028489]
[1644700883076,3.8436251,2955.9,2954.5,0.0028489]
[1644700883375,3.8436251,2955.9,2955.7,0.00984932]
[1644700883376,2.2183,2955.8,2955.7,0.00984932]
[1644700883575,2.2183,2955.8,2955.3,0.03940318]
[1644700883576,0.01969863,2955.6,2955.3,0.03940318]
[1644700883774,4.57826506,2955.6,2955.3,0.03940318]
[1644700884028,4.57826506,2955.6,2954.5,0.0028489]
[1644700885622,0.3,2955.5,2954.5,0.0028489]
[1644700885822,0.1691,2955.4,2954.5,0.0028489]
[1644700886022,0.77728601,2954.6,2954.5,0.0028489]
[1644700886221,0.77728601,2954.6,2954.0,0.0028489]
[1644700886422,0.77728601,2954.6,2954.0,0.1691]
[1644700886725,3.73760775,2955.2,2954.4,0.00985756]
[1644700886923,3.3090074,2955.2,2954.4,0.00985756]
[1644700887123,0.1691,2955.1,2954.4,0.00985756]
[1644700887324,1.1691,2955.1,2954.4,0.00985756]